Workbook

Sheet Perheen budjetti
B1: VIRTASEN PERHEEN BUDJETTI
B2: VUOSI: | C2: 2013
B4: KÄYTETTÄVISSÄ OLEVA KÄTEINEN | C4: TAMMI | D4: HELMI | E4: MAALIS | F4: HUHTI | G4: TOUKOKUU | H4: KESÄ | I4: HEINÄ | J4: ELO | K4: SYYS | L4: LOKA | M4: MARRAS | N4: JOULU | O4: VUODEN ALUSTA YHTEENSÄ | P4: SUUNTAUS
B5: Kuukausittainen käteinen | C5: =tblIncome[[#Totals],[TAMMI]]-tblExpenses[[#Totals],[TAMMI]] -> 1,220.00 € | D5: =tblIncome[[#Totals],[HELMI]]-tblExpenses[[#Totals],[HELMI]] -> 1,587.00 € | E5: =tblIncome[[#Totals],[MAALIS]]-tblExpenses[[#Totals],[MAALIS]] -> 1,174.00 € | F5: =tblIncome[[#Totals],[HUHTI]]-tblExpenses[[#Totals],[HUHTI]] -> 1,445.00 € | G5: =tblIncome[[#Totals],[TOUKOKUU]]-tblExpenses[[#Totals],[TOUKOKUU]] -> 1,391.00 € | H5: =tblIncome[[#Totals],[KESÄ]]-tblExpenses[[#Totals],[KESÄ]] -> 1,434.00 € | I5: =tblIncome[[#Totals],[HEINÄ]]-tblExpenses[[#Totals],[HEINÄ]] -> 1,085.00 € | J5: =tblIncome[[#Totals],[ELO]]-tblExpenses[[#Totals],[ELO]] -> 1,181.00 € | K5: =tblIncome[[#Totals],[SYYS]]-tblExpenses[[#Totals],[SYYS]] -> 1,445.00 € | L5: =tblIncome[[#Totals],[LOKA]]-tblExpenses[[#Totals],[LOKA]] -> 1,466.00 € | M5: =tblIncome[[#Totals],[MARRAS]]-tblExpenses[[#Totals],[MARRAS]] -> 0.00 € | N5: =tblIncome[[#Totals],[JOULU]]-tblExpenses[[#Totals],[JOULU]] -> 0.00 € | O5: =tblIncome[[#Totals],[VUODEN ALUSTA YHTEENSÄ]]-tblExpenses[[#Totals],[VUODEN ALUSTA YHTEENSÄ]] -> 13,428.00 €
B7: TULOTYYPPI | C7: TAMMI | D7: HELMI | E7: MAALIS | F7: HUHTI | G7: TOUKOKUU | H7: KESÄ | I7: HEINÄ | J7: ELO | K7: SYYS | L7: LOKA | M7: MARRAS | N7: JOULU | O7: VUODEN ALUSTA YHTEENSÄ | P7: SUUNTAUS
B8: Tulot 1 | C8: 4,000.00 € | D8: 4,410.00 € | E8: 4,019.00 € | F8: 4,263.00 € | G8: 4,123.00 € | H8: 4,308.00 € | I8: 4,162.00 € | J8: 4,165.00 € | K8: 4,248.00 € | L8: 4,324.00 € | O8: =SUM(tblIncome[[#This Row],[TAMMI]:[JOULU]]) -> 42,022.00 €
B9: Tulot 2 | C9: 275.00 € | D9: 296.00 € | E9: 251.00 € | F9: 269.00 € | G9: 252.00 € | H9: 252.00 € | I9: 262.00 € | J9: 258.00 € | K9: 296.00 € | L9: 270.00 € | O9: =SUM(tblIncome[[#This Row],[TAMMI]:[JOULU]]) -> 2,681.00 €
B10: Muut tulot | C10: 500.00 € | D10: 507.00 € | E10: 551.00 € | F10: 556.00 € | G10: 588.00 € | H10: 534.00 € | I10: 533.00 € | J10: 585.00 € | K10: 560.00 € | L10: 520.00 € | O10: =SUM(tblIncome[[#This Row],[TAMMI]:[JOULU]]) -> 5,434.00 €
B11: TULOT YHTEENSÄ | C11: =SUBTOTAL(109,tblIncome[TAMMI]) -> 4,775.00 € | D11: =SUBTOTAL(109,tblIncome[HELMI]) -> 5,213.00 € | E11: =SUBTOTAL(109,tblIncome[MAALIS]) -> 4,821.00 € | F11: =SUBTOTAL(109,tblIncome[HUHTI]) -> 5,088.00 € | G11: =SUBTOTAL(109,tblIncome[TOUKOKUU]) -> 4,963.00 € | H11: =SUBTOTAL(109,tblIncome[KESÄ]) -> 5,094.00 € | I11: =SUBTOTAL(109,tblIncome[HEINÄ]) -> 4,957.00 € | J11: =SUBTOTAL(109,tblIncome[ELO]) -> 5,008.00 € | K11: =SUBTOTAL(109,tblIncome[SYYS]) -> 5,104.00 € | L11: =SUBTOTAL(109,tblIncome[LOKA]) -> 5,114.00 € | M11: =SUBTOTAL(109,tblIncome[MARRAS]) -> 0.00 € | N11: =SUBTOTAL(109,tblIncome[JOULU]) -> 0.00 € | O11: =SUBTOTAL(109,tblIncome[VUODEN ALUSTA YHTEENSÄ]) -> 50,137.00 €
B13: KULUT | C13: TAMMI | D13: HELMI | E13: MAALIS | F13: HUHTI | G13: TOUKOKUU | H13: KESÄ | I13: HEINÄ | J13: ELO | K13: SYYS | L13: LOKA | M13: MARRAS | N13: JOULU | O13: VUODEN ALUSTA YHTEENSÄ | P13: SUUNTAUS
B14: Asuminen | C14: 1,500.00 € | D14: 1,500.00 € | E14: 1,500.00 € | F14: 1,500.00 € | G14: 1,500.00 € | H14: 1,500.00 € | I14: 1,500.00 € | J14: 1,500.00 € | K14: 1,500.00 € | L14: 1,500.00 € | O14: =SUM(tblExpenses[[#This Row],[TAMMI]:[JOULU]]) -> 15,000.00 €
B15: Ruokaostokset | C15: 250.00 € | D15: 331.00 € | E15: 299.00 € | F15: 333.00 € | G15: 324.00 € | H15: 313.00 € | I15: 338.00 € | J15: 225.00 € | K15: 258.00 € | L15: 322.00 € | O15: =SUM(tblExpenses[[#This Row],[TAMMI]:[JOULU]]) -> 2,993.00 €
B16: Automaksu | C16: 345.00 € | D16: 345.00 € | E16: 345.00 € | F16: 345.00 € | G16: 345.00 € | H16: 345.00 € | I16: 345.00 € | J16: 345.00 € | K16: 345.00 € | L16: 345.00 € | O16: =SUM(tblExpenses[[#This Row],[TAMMI]:[JOULU]]) -> 3,450.00 €
B17: Vakuutus | C17: 120.00 € | D17: 120.00 € | E17: 120.00 € | F17: 120.00 € | G17: 120.00 € | H17: 120.00 € | I17: 120.00 € | J17: 120.00 € | K17: 120.00 € | L17: 120.00 € | O17: =SUM(tblExpenses[[#This Row],[TAMMI]:[JOULU]]) -> 1,200.00 €
B18: Kotipuhelin | C18: 50.00 € | D18: 50.00 € | E18: 50.00 € | F18: 50.00 € | G18: 50.00 € | H18: 50.00 € | I18: 50.00 € | J18: 50.00 € | K18: 50.00 € | L18: 50.00 € | O18: =SUM(tblExpenses[[#This Row],[TAMMI]:[JOULU]]) -> 500.00 €
B19: Kännykkä | C19: 72.00 € | D19: 70.00 € | E19: 80.00 € | F19: 70.00 € | G19: 75.00 € | H19: 80.00 € | I19: 90.00 € | J19: 73.00 € | K19: 75.00 € | L19: 70.00 € | O19: =SUM(tblExpenses[[#This Row],[TAMMI]:[JOULU]]) -> 755.00 €
B20: Kaapeli-TV | C20: 60.00 € | D20: 63.00 € | E20: 65.00 € | F20: 60.00 € | G20: 65.00 € | H20: 60.00 € | I20: 63.00 € | J20: 60.00 € | K20: 63.00 € | L20: 60.00 € | O20: =SUM(tblExpenses[[#This Row],[TAMMI]:[JOULU]]) -> 619.00 €
B21: Internet | C21: 45.00 € | D21: 45.00 € | E21: 45.00 € | F21: 45.00 € | G21: 45.00 € | H21: 45.00 € | I21: 45.00 € | J21: 45.00 € | K21: 45.00 € | L21: 45.00 € | O21: =SUM(tblExpenses[[#This Row],[TAMMI]:[JOULU]]) -> 450.00 €
B22: Sähkö | C22: 155.00 € | D22: 155.00 € | E22: 158.00 € | F22: 160.00 € | G22: 165.00 € | H22: 200.00 € | I22: 340.00 € | J22: 350.00 € | K22: 240.00 € | L22: 180.00 € | O22: =SUM(tblExpenses[[#This Row],[TAMMI]:[JOULU]]) -> 2,103.00 €
B23: Vesi | C23: 35.00 € | D23: 35.00 € | E23: 37.00 € | F23: 39.00 € | G23: 45.00 € | H23: 42.00 € | I23: 42.00 € | J23: 36.00 € | K23: 38.00 € | L23: 40.00 € | O23: =SUM(tblExpenses[[#This Row],[TAMMI]:[JOULU]]) -> 389.00 €
B24: Lämmitys | C24: 50.00 € | D24: 45.00 € | E24: 40.00 € | F24: 40.00 € | G24: 42.00 € | H24: 50.00 € | I24: 55.00 € | J24: 40.00 € | K24: 43.00 € | L24: 30.00 € | O24: =SUM(tblExpenses[[#This Row],[TAMMI]:[JOULU]]) -> 435.00 €
B25: Viihde | C25: 123.00 € | D25: 92.00 € | E25: 58.00 € | F25: 131.00 € | G25: 46.00 € | H25: 105.00 € | I25: 84.00 € | J25: 108.00 € | K25: 132.00 € | L25: 136.00 € | O25: =SUM(tblExpenses[[#This Row],[TAMMI]:[JOULU]]) -> 1,015.00 €
B26: Lukukausimaksu | C26: 550.00 € | D26: 550.00 € | E26: 550.00 € | F26: 550.00 € | G26: 550.00 € | H26: 550.00 € | I26: 550.00 € | J26: 550.00 € | K26: 550.00 € | L26: 550.00 € | O26: =SUM(tblExpenses[[#This Row],[TAMMI]:[JOULU]]) -> 5,500.00 €
B27: Säästöt | C27: 200.00 € | D27: 225.00 € | E27: 300.00 € | F27: 200.00 € | G27: 200.00 € | H27: 200.00 € | I27: 250.00 € | J27: 325.00 € | K27: 200.00 € | L27: 200.00 € | O27: =SUM(tblExpenses[[#This Row],[TAMMI]:[JOULU]]) -> 2,300.00 €
B28: KULUT YHTEENSÄ | C28: =SUBTOTAL(109,tblExpenses[TAMMI]) -> 3,555.00 € | D28: =SUBTOTAL(109,tblExpenses[HELMI]) -> 3,626.00 € | E28: =SUBTOTAL(109,tblExpenses[MAALIS]) -> 3,647.00 € | F28: =SUBTOTAL(109,tblExpenses[HUHTI]) -> 3,643.00 € | G28: =SUBTOTAL(109,tblExpenses[TOUKOKUU]) -> 3,572.00 € | H28: =SUBTOTAL(109,tblExpenses[KESÄ]) -> 3,660.00 € | I28: =SUBTOTAL(109,tblExpenses[HEINÄ]) -> 3,872.00 € | J28: =SUBTOTAL(109,tblExpenses[ELO]) -> 3,827.00 € | K28: =SUBTOTAL(109,tblExpenses[SYYS]) -> 3,659.00 € | L28: =SUBTOTAL(109,tblExpenses[LOKA]) -> 3,648.00 € | M28: =SUBTOTAL(109,tblExpenses[MARRAS]) -> 0.00 € | N28: =SUBTOTAL(109,tblExpenses[JOULU]) -> 0.00 € | O28: =SUBTOTAL(109,tblExpenses[VUODEN ALUSTA YHTEENSÄ]) -> 36,709.00 €
